fUST/lending_fUST_20260220
["ID","MTS","AMOUNT","RATE_DAILY","PERIOD"]
[406150791,1771590941172,-168.0,0.000545,120]
[406150792,1771590941198,-1174.64,0.00054794,120]
[406150793,1771590941222,-2242.21,0.00054794,30]
[406150794,1771590941247,-2242.21,0.00054794,30]
[406150795,1771590941272,-2242.21,0.00054794,30]
[406150796,1771590941296,-2242.21,0.00054794,30]
[406150797,1771590941321,-2242.21,0.00054794,30]
[406150798,1771590941345,-2242.21,0.00054794,30]
[406150799,1771590941371,-2242.21,0.00054794,30]
[406150800,1771590941395,-2242.21,0.00054794,30]
[406150801,1771590941421,-2242.21,0.00054794,30]
[406150802,1771590941446,-2242.21,0.00054794,30]
[406150803,1771590941470,-2242.21,0.00054794,30]
[406150804,1771590941494,-2242.21,0.00054794,30]
[406150805,1771590941520,-2242.21,0.00054794,30]
[406150806,1771590941545,-2242.21,0.00054794,30]
[406150807,1771590941571,-2242.21,0.00054794,30]
[406150808,1771590941596,-2242.21,0.00054794,30]
[406150809,1771590941621,-2242.21,0.00054794,30]
[406150810,1771590941646,-2242.21,0.00054794,30]
[406150811,1771590941674,-2242.21,0.00054794,30]
[406150812,1771590941699,-2242.21,0.00054794,30]
[406150813,1771590941726,-2242.21,0.00054794,30]
[406150814,1771590941752,-2242.21,0.00054794,30]
[406150815,1771590941778,-2242.21,0.00054794,30]
[406150816,1771590941804,-2242.43433056,0.00054794,30]
[406150817,1771590941830,-1000.0,0.00054795,120]
[406150818,1771590941856,-2000.0,0.00054795,120]
[406150819,1771590941881,-2000.0,0.00054795,120]
[406150820,1771590941907,-770.648,0.00054795,120]
[406150821,1771590941932,-4464.28653443,0.00054795,60]
[406150822,1771590942225,150.0,0.00054695,120]
[406150851,1771591832314,-308.117043,0.0001669,2]
[406150853,1771591832324,-60.87731229,0.00016708,2]
[406150884,1771591838494,-5000.0,0.00016708,2]
[406151087,1771591840928,-1125.34589103,0.00016708,2]
[406151401,1771591844038,-3152.7,0.00016708,2]
[406151605,1771591846315,-17105.85042957,0.00016708,2]
[406164298,1771593032459,-671.23567601,0.00014494,2]
[406164402,1771593038806,-3.41432399,0.00014494,2]
[406164404,1771593038815,-575.73249258,0.0001464,2]
[406164406,1771593038825,-1942.8516063,0.00014834,2]
[406164408,1771593038834,-150.0,0.00015012,2]
[406164410,1771593038844,-369.55860469,0.00015049,2]
[406164412,1771593038853,-665.20548844,0.00015049,2]
[406164414,1771593038862,-486.46086073,0.00015405,2]
[406164416,1771593038872,-215.0102568,0.0001555,2]
[406164418,1771593038881,-174.43940773,0.00015841,2]
[406164420,1771593038891,-313.99093392,0.00015841,2]
[406164422,1771593038901,-1200.0,0.00015999,2]
[406164423,1771593038911,-500.0,0.00016,2]
[406164426,1771593038920,-300.0,0.00016199,2]
[406164429,1771593038930,-300.0,0.00016199,2]
[406164431,1771593038940,-300.0,0.00016199,2]
[406164434,1771593038950,-300.0,0.00016199,2]
[406164436,1771593038959,-500.0,0.00016199,2]
[406164438,1771593038968,-500.0,0.00016199,2]
[406164440,1771593038978,-500.0,0.00016199,2]
[406164442,1771593038987,-500.0,0.00016199,2]
[406164444,1771593038996,-500.0,0.00016199,2]
[406164446,1771593039006,-500.0,0.00016199,2]
[406164448,1771593039016,-500.0,0.00016199,2]
[406164450,1771593039025,-500.0,0.00016199,2]
[406164452,1771593039034,-500.0,0.00016199,2]
[406164454,1771593039044,-358.17449794,0.00016199,2]
[406164456,1771593039053,-500.0,0.00016199,2]
[406164458,1771593039062,-500.0,0.00016199,2]
[406164460,1771593039071,-500.0,0.00016199,2]
[406164462,1771593039081,-500.0,0.00016199,2]
[406164464,1771593039093,-500.0,0.00016199,2]
[406164466,1771593039103,-500.0,0.00016199,2]
[406164468,1771593039112,-500.0,0.00016199,2]
[406164470,1771593039121,-272.64600221,0.00016199,2]
[406164472,1771593039131,-500.0,0.00016199,2]
[406164474,1771593039140,-500.0,0.00016199,2]
[406164476,1771593039150,-500.0,0.00016199,2]
[406164478,1771593039159,-500.0,0.00016199,2]
[406164480,1771593039170,-500.0,0.00016199,2]
[406164483,1771593039179,-500.0,0.00016199,2]
[406164484,1771593039189,-500.0,0.00016199,2]
[406164486,1771593039198,-500.0,0.00016199,2]
[406164488,1771593039207,-500.0,0.00016199,2]
[406164490,1771593039216,-301.60599155,0.00016199,2]
[406164492,1771593039226,-500.0,0.00016199,2]
[406164494,1771593039236,-500.0,0.00016199,2]
[406164496,1771593039245,-500.0,0.00016199,2]
[406164498,1771593039254,-500.0,0.00016199,2]
[406164500,1771593039263,-500.0,0.00016199,2]
[406164502,1771593039273,-500.0,0.00016199,2]
[406164504,1771593039282,-348.20120103,0.00016199,2]
[406164506,1771593039293,-500.0,0.00016199,2]
[406164509,1771593039303,-500.0,0.00016199,2]
[406164510,1771593039313,-357.78344627,0.00016199,2]
[406164512,1771593039323,-500.0,0.00016199,2]
[406164514,1771593039332,-500.0,0.00016199,2]
[406164516,1771593039342,-500.0,0.00016199,2]
[406164518,1771593039351,-500.0,0.00016199,2]
[406164520,1771593039363,-500.0,0.00016199,2]
[406164522,1771593039379,-500.0,0.00016199,2]
[406164524,1771593039388,-500.0,0.00016199,2]
[406164527,1771593039399,-500.0,0.00016199,2]
[406164529,1771593039410,-217.72,0.000162,2]
[406164531,1771593039419,-12067.73782124,0.000162,2]
[406164536,1771593039465,-500.0,0.00016199,2]
[406164538,1771593039474,-500.0,0.00016199,2]
[406164540,1771593039483,-398.34061854,0.00016199,2]
[406165103,1771593044968,-101.65938146,0.00016199,2]
[406165105,1771593044977,-157.67931132,0.00016199,2]
[406165107,1771593044987,-500.0,0.00016199,2]
[406165109,1771593044996,-241.15956722,0.00016199,2]
[406165111,1771593045008,-258.84043278,0.00016199,2]
[406165113,1771593045017,-196.98238969,0.00016199,2]
[406165115,1771593045026,-500.0,0.00016199,2]
[406165117,1771593045035,-500.0,0.00016199,2]
[406165119,1771593045044,-500.0,0.00016199,2]
[406165121,1771593045053,-500.0,0.00016199,2]
[406165123,1771593045062,-500.0,0.00016199,2]
[406165125,1771593045072,-500.0,0.00016199,2]
[406165127,1771593045081,-500.0,0.00016199,2]
[406165129,1771593045090,-500.0,0.00016199,2]
[406165131,1771593045099,-500.0,0.00016199,2]
[406165133,1771593045108,-171.40124091,0.000162,2]
[406165299,1771593046531,-12426.55524372,0.000162,2]
[406165301,1771593046541,-229.61972297,0.00016216,2]
[406165304,1771593046551,-3806.92190548,0.00016362,2]
[406165305,1771593046560,-285.95247753,0.00016463,2]
[406165307,1771593046569,-386.52166726,0.00016463,2]
[406165309,1771593046579,-326.80283146,0.00016463,2]
[406165311,1771593046588,-695.73900107,0.00016463,2]
[406165313,1771593046598,-205.7203304,0.00016473,2]
[406165315,1771593046607,-395.79181717,0.00016668,2]
[406165317,1771593046617,-1236.86933524,0.00016685,2]
[406165319,1771593046626,-250.67729874,0.00016898,2]
[406165322,1771593046636,-1032.57952457,0.00016899,2]
[406165324,1771593046645,-175.98,0.000169,2]
[406165325,1771593046655,-240.9195246,0.00016976,2]
[406165327,1771593046663,-500.000001,0.00017,2]
[406165329,1771593046672,-500.0,0.00017006,2]
[406165331,1771593046682,-6786.77527948,0.00017008,2]
[406175683,1771593990788,-150.0,0.00014395,2]
[406175684,1771593990812,-150.0,0.00014614,2]
[406175685,1771593990836,-631.0,0.00014687,2]
[406175686,1771593990858,-891.03011582,0.00014985,2]
[406175687,1771593990881,-1819.05109795,0.00016401,2]
[406175688,1771593990905,-1932.60833631,0.00016463,2]
[406175689,1771593990929,-177.0,0.00016614,2]
[406175690,1771593990952,-1200.0,0.00017001,2]
[406175691,1771593990974,-300.0,0.00017001,2]
[406175692,1771593990999,-300.0,0.00017002,2]
[406175693,1771593991021,-300.0,0.00017002,2]
[406175694,1771593991043,-300.0,0.00017002,2]
[406175695,1771593991064,-300.0,0.00017002,2]
[406175696,1771593991087,-27768.43496875,0.00017003,2]
[406175698,1771593991110,-373.08704958,0.00017003,2]
[406175699,1771593991133,-477.95622128,0.00017003,2]
[406175700,1771593991158,-350.85325681,0.00017003,2]
[406175701,1771593991182,-500.0,0.00017003,2]
[406175702,1771593991205,-500.0,0.00017003,2]
[406175703,1771593991229,-500.0,0.00017003,2]
[406175704,1771593991253,-316.46680011,0.00017003,2]
[406175705,1771593991277,-196.96066691,0.00017003,2]
[406175706,1771593991300,-4267.87416572,0.00017008,2]
[406175707,1771593991321,-761.770467,0.00017197,2]
[406175708,1771593991343,-487.83017195,0.00017706,2]
[406175709,1771593991366,-500.0,0.00017706,2]
[406175710,1771593991389,-3488.102196,0.00017883,2]
[406175711,1771593991412,-4208.78430316,0.000179,2]
[406175712,1771593991435,-761.770467,0.00017921,2]
[406175713,1771593991458,-1287.16919985,0.00017933,2]
[406175714,1771593991480,-486.49,0.00017987,3]
[406175715,1771593991502,-972.98,0.00017987,3]
[406175716,1771593991524,-486.49,0.00017987,3]
[406175717,1771593991547,-243.24,0.00017987,3]
[406175718,1771593991568,-729.76,0.00017987,3]
[406175719,1771593991591,-224.57392249,0.00017996,2]
[406175720,1771593991613,-420381.82284783,0.00017997,2]
[406175721,1771593991640,-194.22,0.00018,2]
[406175722,1771593991669,-110408.19750207,0.00018,2]
[406175723,1771593991694,-15807.49962206,0.00018,2]
[406175724,1771593991719,-500.0,0.00018,2]
[406175725,1771593991742,-495.0,0.00018,2]
[406175726,1771593991764,-487.0,0.00018,2]
[406175727,1771593991789,-487.0,0.00018,2]
[406175728,1771593991811,-487.0,0.00018,2]
[406175729,1771593991835,-487.0,0.00018,2]
[406175730,1771593991857,-559.54,0.00018,2]
[406175731,1771593991880,-300.0,0.00018356,2]
[406175732,1771593991902,-300.0,0.00018356,2]
[406175733,1771593991927,-300.0,0.00018356,2]
[406175734,1771593991951,-300.0,0.00018356,2]
[406175735,1771593991976,-300.0,0.00018356,2]
[406175736,1771593992000,-300.0,0.00018356,2]
[406175737,1771593992033,-300.0,0.00018356,2]
[406175738,1771593992058,-300.0,0.00018356,2]
[406175739,1771593992082,-300.0,0.00018356,2]
[406175740,1771593992106,-300.0,0.00018356,2]
[406175741,1771593992130,-300.0,0.00018356,2]
[406175742,1771593992156,-300.0,0.00018356,2]
[406175743,1771593992181,-300.0,0.00018356,2]
[406175744,1771593992206,-300.0,0.00018356,2]
[406175745,1771593992232,-300.0,0.00018356,2]
[406175746,1771593992258,-600.0,0.00018356,2]
[406175747,1771593992282,-420.0,0.00018569,2]
[406175748,1771593992304,-315.0,0.0001857,2]
[406175749,1771593992328,-420.0,0.0001857,2]
[406175750,1771593992353,-204.0,0.00018614,2]
[406175751,1771593992376,-761.770467,0.00018645,2]
[406175752,1771593992401,-12828.83059117,0.00019,2]
[406175753,1771593992424,-500.0,0.00019,2]
[406175754,1771593992459,-511.093,0.00019178,2]
[406175755,1771593992486,-200.0,0.00019178,2]
[406175756,1771593992509,-157.06,0.00019178,2]
[406175757,1771593992532,-511.093,0.00019178,2]
[406175758,1771593992557,-345.24,0.000192,2]
[406175759,1771593992579,-743.73449086,0.00019275,2]
[406175760,1771593992603,-972.98,0.00019357,3]
[406175761,1771593992735,-1945.96,0.00019357,3]
[406175762,1771593992760,-972.98,0.00019357,3]
[406175763,1771593992783,-486.48,0.00019357,3]
[406175764,1771593992807,-3560.66963494,0.00019365,2]
[406175765,1771593992830,-761.770467,0.00019369,2]
[406175766,1771593992854,-896.87,0.000194,2]
[406175767,1771593992877,-511.093,0.00019589,3]
[406175768,1771593992901,-511.093,0.00019589,3]
[406175769,1771593992924,-10000.0,0.0002,10]
[406175770,1771593992947,-511.093,0.0002,4]
[406175771,1771593992970,-761.770467,0.00020093,2]
[406175772,1771593992996,-720.0,0.00020192,2]
[406175773,1771593993020,-587.0,0.00020281,2]
[406175774,1771593993046,-761.770467,0.00020817,2]
[406175775,1771593993070,-3778.37195206,0.00020847,2]
[406175776,1771593993093,-5015.81082769,0.00021,5]
[406175777,1771593993116,-823.0,0.00022152,2]
[406175778,1771593993140,-156.79,0.000222,7]
[406175779,1771593993164,-45953.17,0.000222,2]
[406175780,1771593993190,-864.0,0.00022211,10]
[406175781,1771593993214,-4068.64170823,0.00022329,2]
[406175782,1771593993237,-1390.213,0.00023587,2]
[406175783,1771593993260,-656.24,0.00023587,2]
[406175784,1771593993282,-2273.611,0.00023587,2]
[406175785,1771593993304,-426.0,0.00023587,2]
[406175786,1771593993327,-344.965,0.00023587,2]
[406175787,1771593993350,-198.035,0.00023587,2]
[406175788,1771593993376,-4358.91146439,0.00023811,2]
[406175789,1771593993400,-2000.0,0.00024,7]
[406175790,1771593993424,-345.24,0.00024,14]
[406175791,1771593993448,-484.0,0.00024195,2]
[406175792,1771593993475,-1000.0,0.00024432,10]
[406175793,1771593993502,-148354.251736,0.000249,2]
[406175794,1771593993524,-10000.0,0.00025,15]
[406175795,1771593993549,-4649.18122056,0.00025293,5]
[406175796,1771593993574,-896.87,0.000258,2]
[406175797,1771593993596,-151.0,0.000259,20]
[406175798,1771593993619,-2000.0,0.00026,7]
[406175799,1771593993646,-500.0,0.00026104,7]
[406175800,1771593993669,-500.0,0.00026362,7]
[406175801,1771593993696,-500.0,0.00026561,7]
[406175802,1771593993721,-1382.0,0.00026587,2]
[406175803,1771593993745,-635.0,0.00026587,2]
[406175804,1771593993768,-181.0,0.00026587,2]
[406175805,1771593993792,-45953.17,0.000266,2]
[406175806,1771593993815,-500.0,0.00026669,7]
[406175807,1771593993838,-4939.45097672,0.00026775,10]
[406175808,1771593993871,-156.79,0.000269,7]
[406175809,1771593993896,-500.0,0.00026942,7]
[406175810,1771593993921,-500.0,0.00027014,7]
[406175811,1771593993946,-500.0,0.00027045,7]
[406175812,1771593993969,-151.0,0.000272,17]
[406175813,1771593993992,-151.0,0.000272,12]
[406175814,1771593994015,-11411.8655181,0.00027387,2]
[406175815,1771593994038,-2000.0,0.00027397,2]
[406175816,1771593994062,-2000.0,0.00027397,2]
[406175817,1771593994085,-2000.0,0.00027397,2]
[406175818,1771593994109,-2000.0,0.00027397,2]
[406175819,1771593994132,-2000.759454,0.00027397,2]
[406175820,1771593994154,-791.6929879,0.00027603,7]
[406175821,1771593994178,-500.0,0.00027616,7]
[406175822,1771593994201,-168.0,0.00027645,2]
[406175823,1771593994225,-438.0,0.00027768,3]
[406175824,1771593994249,-310.0,0.00027818,2]
[406175825,1771593994270,-38000.0,0.0002785,7]
[406175826,1771593994292,-743.73449086,0.0002785,7]
[406175827,1771593994316,-310.0,0.00027895,7]
[406175828,1771593994339,-345.24,0.000279,14]
[406175829,1771593994364,-5302.28817193,0.00028257,14]
[406175830,1771593994387,-11411.8655181,0.00028489,2]
[406175831,1771593994417,-477.05546305,0.00028499,2]
[406175832,1771593994442,-151.0,0.000285,13]
[406175833,1771593994464,-151.0,0.000285,18]
[406175834,1771593994488,-896.87,0.000286,2]
[406175835,1771593994513,-168.0,0.00028661,2]
[406175836,1771593994537,-161.95,0.000294,7]
[406175837,1771593994560,-156.79,0.000294,7]
[406175838,1771593994582,-181.0,0.00029587,2]
[406175839,1771593994605,-45953.17,0.000296,2]
[406175840,1771593994630,-5447.42305001,0.00029739,14]
[406175841,1771593994657,-151.0,0.000298,19]
[406175842,1771593994680,-151.0,0.000299,10]
[406175843,1771593994704,-151.0,0.000299,19]
[406175844,1771593994729,-168.0,0.00029934,2]
[406175845,1771593994754,-168.0,0.00029964,7]
[406175846,1771593994777,-195.04004283,0.0003,2]
[406175847,1771593994801,-1351.53,0.0003,2]
[406175848,1771593994825,-168.0,0.00030032,7]
[406175849,1771593994849,-168.0,0.00030071,2]
[406175850,1771593994870,-4351.34817282,0.00030137,120]
[406175851,1771593994894,-168.0,0.0003018,2]
[406175852,1771593994919,-283.0,0.00030197,2]
[406175853,1771593994943,-168.0,0.0003027,2]
[406175854,1771593994964,-170.0,0.00030384,14]
[406175855,1771593994988,-168.0,0.00030684,2]
[406175856,1771593995012,-896.87,0.000307,2]
[406175857,1771593995035,-168.0,0.00030763,2]
[406175858,1771593995064,-4046.77,0.00030825,2]
[406175859,1771593995088,-168.0,0.00030937,2]
[406175860,1771593995113,-168.0,0.00030952,2]
[406175861,1771593995139,-168.0,0.00031005,7]
[406175862,1771593995163,-168.0,0.00031131,7]
[406175863,1771593995185,-57059.3275907,0.00031136,2]
[406175864,1771593995208,-303902.82616105,0.00031146,2]
[406175865,1771593995231,-168.0,0.00031202,2]
[406175866,1771593995255,-6608.50207467,0.00031221,14]
[406175867,1771593995279,-168.0,0.00031336,2]
[406175868,1771593995301,-345.24,0.000314,14]
[406175869,1771593995324,-168.0,0.00031424,2]
[406175870,1771593995347,-45953.17,0.000315,2]
[406175871,1771593995371,-168.0,0.00031552,2]
[406175872,1771593995495,-168.0,0.00031593,2]
[406175873,1771593995521,-168.0,0.00031738,2]
[406175874,1771593995545,-168.0,0.00031909,2]
[406175875,1771593995568,-151.0,0.00032,30]
[406175876,1771593995592,-168.0,0.00032035,2]
[406175877,1771593995615,-140353.2504328,0.000321,3]
[406175878,1771593995641,-7043.90670892,0.00032703,14]
[406175879,1771593995664,-894.4893504,0.00032876,19]
[406175880,1771593995688,-555.52202638,0.00032876,19]
[406175881,1771593995710,-228.09291523,0.00032876,19]
[406175882,1771593995733,-503.75714657,0.00032876,12]
[406175883,1771593995755,-500.0,0.00032876,19]
[406175884,1771593995777,-500.0,0.00032876,19]
[406175885,1771593995799,-500.0,0.00032876,19]
[406175886,1771593995822,-500.0,0.00032876,19]
[406175887,1771593995844,-500.0,0.00032876,19]
[406175888,1771593995866,-500.0,0.00032876,19]
[406175889,1771593995889,-151.34797979,0.00032876,19]
[406175890,1771593995911,-500.0,0.00032876,19]
[406175891,1771593995933,-500.0,0.00032876,19]
[406175892,1771593995956,-528.32744219,0.00032876,19]
[406175893,1771593995978,-500.0,0.00032876,19]
[406175894,1771593996000,-500.0,0.00032876,5]
[406175895,1771593996024,-500.0,0.00032876,19]
[406175896,1771593996047,-500.0,0.00032876,19]
[406175897,1771593996069,-500.0,0.00032876,19]
[406175898,1771593996091,-549.59,0.00032876,19]
[406175899,1771593996114,-2247.32,0.00032876,19]
[406175900,1771593996136,-502.7724859,0.00032876,19]
[406175901,1771593996157,-500.0,0.00032876,19]
[406175902,1771593996180,-538.99385484,0.00032876,19]
[406175903,1771593996202,-560.97413832,0.00032876,19]
[406175904,1771593996225,-622.33272667,0.00032876,19]
[406175905,1771593996248,-500.0,0.00032876,19]
[406175906,1771593996270,-547.99977813,0.00032876,19]
[406175907,1771593996293,-501.34016856,0.00032876,19]
[406175908,1771593996316,-500.0,0.00032876,19]
[406175909,1771593996338,-561.11256428,0.00032876,19]
[406175910,1771593996360,-552.30600561,0.00032876,19]
[406175911,1771593996383,-617.9188168,0.00032876,19]
[406175912,1771593996406,-500.0,0.00032876,19]
[406175913,1771593996429,-500.0,0.00032876,19]
[406175914,1771593996452,-508.13523929,0.00032876,19]
[406175915,1771593996474,-500.0,0.00032876,7]
[406175916,1771593996497,-500.0,0.00032876,19]
[406175917,1771593996520,-500.0,0.00032876,19]
[406175918,1771593996543,-500.0,0.00032876,19]
[406175919,1771593996566,-590.22967217,0.00032876,19]
[406175920,1771593996593,-500.0,0.00032876,2]
[406175921,1771593996618,-565.57710938,0.00032876,19]
[406175922,1771593996645,-2003.15,0.00032876,7]
[406175923,1771593996670,-500.0,0.00032876,19]
[406175924,1771593996693,-500.0,0.00032876,2]
[406175925,1771593996717,-1393.9,0.00032876,2]
[406175926,1771593996740,-561.82493286,0.00032876,19]
[406175927,1771593996763,-1000.0,0.00032876,2]
[406175928,1771593996786,-500.0,0.00032876,19]
[406175929,1771593996809,-525.36061065,0.00032876,19]
[406175930,1771593996832,-500.0,0.00032876,19]
[406175931,1771593996855,-243.45794446,0.00032876,19]
[406175932,1771593996877,-534.46848918,0.00032876,19]
[406175933,1771593996901,-295.58529604,0.00032876,19]
[406175934,1771593996928,-500.0,0.00032876,19]
[406175935,1771593996951,-2106.9,0.00032876,19]
[406175936,1771593996974,-240.79212392,0.00032876,19]
[406175937,1771593996996,-500.0,0.00032876,19]
[406175938,1771593997019,-191.38692087,0.00032876,19]
[406175939,1771593997042,-500.0,0.00032876,19]
[406175940,1771593997064,-500.0,0.00032876,19]
[406175941,1771593997086,-500.0,0.00032876,19]
[406175942,1771593997108,-773.88,0.00032876,19]
[406175943,1771593997131,-480.63052939,0.00032876,19]
[406175944,1771593997154,-500.0,0.00032876,19]
[406175945,1771593997176,-220.11617889,0.00032876,19]
[406175946,1771593997198,-500.0,0.00032876,19]
[406175947,1771593997221,-500.0,0.00032876,19]
[406175948,1771593997243,-928.67,0.00032876,19]
[406175949,1771593997265,-552.46,0.00032876,19]
[406175950,1771593997288,-500.0,0.00032876,19]
[406175951,1771593997311,-500.0,0.00032876,19]
[406175952,1771593997333,-18920.35,0.00032876,19]
[406175953,1771593997357,-4842.82,0.00032876,19]
[406175954,1771593997381,-203.77940365,0.00032876,19]
[406175955,1771593997405,-500.0,0.00032876,19]
[406175956,1771593997428,-152.84594995,0.00032876,19]
[406175957,1771593997451,-500.0,0.00032876,19]
[406175958,1771593997474,-170.80335183,0.00032876,19]
[406175959,1771593997497,-500.0,0.00032876,19]
[406175960,1771593997520,-230.39803159,0.00032876,19]
[406175961,1771593997542,-550.1032451,0.00032876,19]
[406175962,1771593997566,-500.0,0.00032876,19]
[406175963,1771593997589,-500.0,0.00032876,19]
[406175964,1771593997614,-500.0,0.00032876,19]
[406175965,1771593997640,-1000.0,0.00032876,2]
[406175966,1771593997665,-401.44285228,0.00032876,19]
[406175967,1771593997691,-890.82,0.00032876,19]
[406175968,1771593997715,-500.0,0.00032876,19]
[406175969,1771593997739,-500.0,0.00032876,19]
[406175970,1771593997763,-500.0,0.00032876,19]
[406175971,1771593997786,-500.0,0.00032876,19]
[406175972,1771593997810,-280.33918838,0.00032876,19]
[406175973,1771593997834,-549.28550458,0.00032876,19]
[406175974,1771593997857,-500.0,0.00032876,19]
[406175975,1771593997881,-659.01,0.00032876,19]
[406175976,1771593997905,-500.0,0.00032876,19]
[406175977,1771593997929,-920.21,0.00032876,19]
[406175978,1771593997953,-500.0,0.00032876,19]
[406175979,1771593998081,-186.49876256,0.00032876,19]
[406175980,1771593998109,-500.0,0.00032876,19]
[406175981,1771593998138,-500.0,0.00032876,19]
[406175982,1771593998165,-329.62321501,0.00032876,19]
[406175983,1771593998189,-2084.54,0.00032876,19]
[406175984,1771593998214,-500.0,0.00032876,19]
[406175985,1771593998239,-176.95640517,0.00032876,19]
[406175986,1771593998264,-563.55,0.00032876,19]
[406175987,1771593998287,-163.77730187,0.00032876,19]
[406175988,1771593998310,-2735.31,0.00032876,19]
[406175989,1771593998333,-500.0,0.00032876,19]
[406175990,1771593998356,-500.0,0.00032876,19]
[406175991,1771593998386,-500.0,0.00032876,19]
[406175992,1771593998416,-245.08249811,0.00032876,19]
[406175993,1771593998441,-649.25429702,0.00032876,19]
[406175994,1771593998465,-2759.18,0.00032876,19]
[406175995,1771593998489,-624.60668131,0.00032876,19]
[406175996,1771593998512,-516.72818194,0.00032876,19]
[406175997,1771593998536,-521.07368586,0.00032876,19]
[406175998,1771593998561,-527.56320578,0.00032876,19]
[406175999,1771593998586,-532.84266535,0.00032876,19]
[406176000,1771593998610,-500.0,0.00032876,19]
[406176001,1771593998637,-167.13158808,0.00032876,19]
[406176002,1771593998666,-999.0,0.00032876,120]
[406176003,1771593998692,-500.0,0.00032876,19]
[406176004,1771593998719,-563.39122999,0.00032876,19]
[406176005,1771593998748,-19809.93,0.00032876,19]
[406176006,1771593998776,-587.71159392,0.00032876,19]
[406176007,1771593998803,-167.82539658,0.00032876,19]
[406176008,1771593998829,-500.0,0.00032876,19]
[406176009,1771593998853,-500.0,0.00032876,19]
[406176010,1771593998878,-257.39127856,0.00032876,19]
[406176011,1771593998909,-500.0,0.00032876,19]
[406176012,1771593998934,-500.0,0.00032876,19]
[406176013,1771593998958,-500.0,0.00032876,19]
[406176014,1771593998982,-607.02937024,0.00032876,19]
[406176015,1771593999007,-500.0,0.00032876,19]
[406176016,1771593999031,-500.0,0.00032876,19]
[406176017,1771593999054,-500.0,0.00032876,19]
[406176018,1771593999077,-268.42968832,0.00032876,19]
[406176019,1771593999100,-542.76449964,0.00032876,19]
[406176020,1771593999124,-581.28749124,0.00032876,19]
[406176021,1771593999148,-7496.04,0.00032876,19]
[406176022,1771593999172,-322.07207431,0.00032876,19]
[406176023,1771593999198,-618.63376396,0.00032876,19]
[406176024,1771593999224,-500.0,0.00032876,19]
[406176025,1771593999247,-510.33613875,0.00032876,19]
[406176026,1771593999270,-500.0,0.00032876,19]
[406176027,1771593999293,-548.19968979,0.00032876,19]
[406176028,1771593999316,-279.30765623,0.00032876,19]
[406176029,1771593999343,-209.59950668,0.00032876,19]
[406176030,1771593999367,-627.85878241,0.00032876,19]
[406176031,1771593999390,-500.0,0.00032876,19]
[406176032,1771593999413,-605.02537315,0.00032876,19]
[406176033,1771593999438,-3608.52,0.00032876,19]
[406176034,1771593999462,-539.51726826,0.00032876,19]
[406176035,1771593999486,-500.0,0.00032876,19]
[406176036,1771593999509,-500.0,0.00032876,19]
[406176037,1771593999533,-500.0,0.00032876,19]
[406176038,1771593999557,-1250.41,0.00032876,19]
[406176039,1771593999581,-524.257006,0.00032876,19]
[406176040,1771593999605,-500.0,0.00032876,19]
[406176041,1771593999628,-500.0,0.00032876,19]
[406176042,1771593999654,-523.00371678,0.00032876,19]
[406176043,1771593999677,-954.01,0.00032876,19]
[406176044,1771593999704,-153.82976495,0.00032876,19]